fUSD/lending_fUSD_20260529
["ID","MTS","AMOUNT","RATE_DAILY","PERIOD"]
[423314760,1780054238000,-500.0,0.00012028,2]
[423314767,1780054238000,-500.0,0.00012028,2]
[423314797,1780054238000,-441.0,0.00012028,2]
[423314798,1780054238000,-816.0,0.00012028,2]
[423314799,1780054238000,-852.0,0.00012028,2]
[423314800,1780054238000,-441.0,0.00012028,2]
[423314811,1780054238000,-852.0,0.00012028,2]
[423314809,1780054238000,-441.0,0.00012028,2]
[423314810,1780054238000,-816.0,0.00012028,2]
[423314801,1780054238000,-816.0,0.00012028,2]
[423314805,1780054238000,-852.0,0.00012028,2]
[423314804,1780054238000,-816.0,0.00012028,2]
[423314802,1780054238000,-852.0,0.00012028,2]
[423314807,1780054238000,-816.0,0.00012028,2]
[423314803,1780054238000,-441.0,0.00012028,2]
[423314806,1780054238000,-441.0,0.00012028,2]
[423314808,1780054238000,-852.0,0.00012028,2]
[423314813,1780054238000,-441.0,0.00012028,2]
[423314822,1780054238000,-500.0,0.00012028,2]
[423314814,1780054238000,-816.0,0.00012028,2]
[423314815,1780054238000,-441.0,0.00012028,2]
[423314816,1780054238000,-816.0,0.00012028,2]
[423314812,1780054238000,-441.0,0.00012028,2]
[423314820,1780054238000,-816.0,0.00012028,2]
[423314821,1780054238000,-441.0,0.00012028,2]
[423314819,1780054238000,-441.0,0.00012028,2]
[423314817,1780054238000,-441.0,0.00012028,2]
[423314823,1780054238000,-500.0,0.00012028,2]
[423314765,1780054238000,-500.0,0.00012028,2]
[423314796,1780054238000,-852.0,0.00012028,2]
[423314790,1780054238000,-441.0,0.00012028,2]
[423314818,1780054238000,-816.0,0.00012028,2]
[423314795,1780054238000,-816.0,0.00012028,2]
[423314766,1780054238000,-500.0,0.00012028,2]
[423314764,1780054238000,-487.75219768,0.00012028,2]
[423314773,1780054238000,-500.0,0.00012028,2]
[423314824,1780054238000,-500.0,0.00012028,2]
[423314769,1780054238000,-500.0,0.00012028,2]
[423314775,1780054238000,-816.0,0.00012028,2]
[423314772,1780054238000,-500.0,0.00012028,2]
[423314768,1780054238000,-500.0,0.00012028,2]
[423314770,1780054238000,-500.0,0.00012028,2]
[423314771,1780054238000,-500.0,0.00012028,2]
[423314787,1780054238000,-816.0,0.00012028,2]
[423314777,1780054238000,-816.0,0.00012028,2]
[423314780,1780054238000,-441.0,0.00012028,2]
[423314774,1780054238000,-441.0,0.00012028,2]
[423314788,1780054238000,-441.0,0.00012028,2]
[423314792,1780054238000,-441.0,0.00012028,2]
[423314793,1780054238000,-816.0,0.00012028,2]
[423314776,1780054238000,-441.0,0.00012028,2]
[423314791,1780054238000,-816.0,0.00012028,2]
[423314789,1780054238000,-816.0,0.00012028,2]
[423314785,1780054238000,-816.0,0.00012028,2]
[423314779,1780054238000,-816.0,0.00012028,2]
[423314794,1780054238000,-441.0,0.00012028,2]
[423314781,1780054238000,-816.0,0.00012028,2]
[423314786,1780054238000,-330.41009315,0.00012028,2]
[423314784,1780054238000,-441.0,0.00012028,2]
[423314782,1780054238000,-441.0,0.00012028,2]
[423314778,1780054238000,-441.0,0.00012028,2]
[423314783,1780054238000,-816.0,0.00012028,2]
[423314864,1780054239000,-573.0,0.00012028,2]
[423314862,1780054239000,-150.0,0.00012028,2]
[423314865,1780054239000,-228.87055429,0.00012028,2]
[423314860,1780054239000,-1209.0,0.00012028,2]
[423314857,1780054239000,-573.0,0.00012028,2]
[423314854,1780054239000,-1209.0,0.00012028,2]
[423314859,1780054239000,-573.0,0.00012028,2]
[423314858,1780054239000,-1209.0,0.00012028,2]
[423314870,1780054239000,-1209.0,0.00012028,2]
[423314861,1780054239000,-573.0,0.00012028,2]
[423314852,1780054239000,-852.0,0.00012028,2]
[423314875,1780054239000,-1209.0,0.00012028,2]
[423314863,1780054239000,-1209.0,0.00012028,2]
[423314867,1780054239000,-573.0,0.00012028,2]
[423314869,1780054239000,-573.0,0.00012028,2]
[423314868,1780054239000,-1209.0,0.00012028,2]
[423314872,1780054239000,-1209.0,0.00012028,2]
[423314882,1780054239000,-500.0,0.00012028,2]
[423314871,1780054239000,-573.0,0.00012028,2]
[423314876,1780054239000,-500.0,0.00012028,2]
[423314883,1780054239000,-1209.0,0.00012028,2]
[423314878,1780054239000,-1209.0,0.00012028,2]
[423314874,1780054239000,-573.0,0.00012028,2]
[423314851,1780054239000,-852.0,0.00012028,2]
[423314866,1780054239000,-1209.0,0.00012028,2]
[423314855,1780054239000,-573.0,0.00012028,2]
[423314837,1780054239000,-852.0,0.00012028,2]
[423314856,1780054239000,-1209.0,0.00012028,2]
[423314880,1780054239000,-1209.0,0.00012028,2]
[423314825,1780054239000,-500.0,0.00012028,2]
[423314826,1780054239000,-852.0,0.00012028,2]
[423314829,1780054239000,-500.0,0.00012028,2]
[423314827,1780054239000,-500.0,0.00012028,2]
[423314828,1780054239000,-852.0,0.00012028,2]
[423314830,1780054239000,-852.0,0.00012028,2]
[423314835,1780054239000,-852.0,0.00012028,2]
[423314836,1780054239000,-852.0,0.00012028,2]
[423314831,1780054239000,-816.0,0.00012028,2]
[423314832,1780054239000,-350.61953154,0.00012028,2]
[423314834,1780054239000,-441.0,0.00012028,2]
[423314850,1780054239000,-829.21998216,0.00012028,2]
[423314833,1780054239000,-852.0,0.00012028,2]
[423314844,1780054239000,-852.0,0.00012028,2]
[423314847,1780054239000,-460.0,0.00012028,2]
[423314846,1780054239000,-816.0,0.00012028,2]
[423314845,1780054239000,-852.0,0.00012028,2]
[423314848,1780054239000,-852.0,0.00012028,2]
[423314841,1780054239000,-852.0,0.00012028,2]
[423314840,1780054239000,-852.0,0.00012028,2]
[423314839,1780054239000,-852.0,0.00012028,2]
[423314843,1780054239000,-441.0,0.00012028,2]
[423314842,1780054239000,-816.0,0.00012028,2]
[423314849,1780054239000,-852.0,0.00012028,2]
[423314853,1780054239000,-870.11662779,0.00012028,2]
[423314838,1780054239000,-852.0,0.00012028,2]
[423314879,1780054239000,-500.0,0.00012028,2]
[423314886,1780054239000,-1209.0,0.00012028,2]
[423314877,1780054239000,-573.0,0.00012028,2]
[423314909,1780054239000,-1712.0,0.00012045,2]
[423314914,1780054239000,-177.88848839,0.00012047,2]
[423314915,1780054239000,-215.5484138,0.00012052,2]
[423314916,1780054239000,-160.0,0.00012052,2]
[423314918,1780054239000,-197.0,0.00012069,2]
[423314920,1780054239000,-406.0,0.00012069,2]
[423314921,1780054239000,-165.0,0.00012093,2]
[423314922,1780054239000,-276.0,0.00012093,2]
[423314923,1780054239000,-1915.0,0.00012093,2]
[423314927,1780054239000,-4000.0,0.00012115,2]
[423314929,1780054239000,-257.0,0.00012117,2]
[423314926,1780054239000,-75633.67217004,0.00012112,2]
[423314919,1780054239000,-255.0,0.00012069,2]
[423314925,1780054239000,-2189.4504754,0.000121,30]
[423314924,1780054239000,-507.0,0.00012097,2]
[423314928,1780054239000,-1508.0,0.00012117,2]
[423314930,1780054239000,-151.0,0.00012117,2]
[423314936,1780054239000,-152.0,0.00012166,7]
[423314935,1780054239000,-1397.0,0.00012165,2]
[423314937,1780054239000,-16785.4456536,0.00012173,2]
[423314934,1780054239000,-451.0,0.00012165,2]
[423314938,1780054239000,-320.0,0.00012189,2]
[423314932,1780054239000,-178.0,0.00012141,2]
[423314873,1780054239000,-500.0,0.00012028,2]
[423314931,1780054239000,-1662.85316363,0.0001214,2]
[423314910,1780054239000,-263.0,0.00012045,2]
[423314912,1780054239000,-322.0,0.00012045,2]
[423314933,1780054239000,-1027.0,0.00012141,2]
[423314913,1780054239000,-800.0,0.00012045,2]
[423314911,1780054239000,-17156.0,0.00012045,2]
[423314884,1780054239000,-573.0,0.00012028,2]
[423314885,1780054239000,-546.70095978,0.00012028,2]
[423314887,1780054239000,-573.0,0.00012028,2]
[423314889,1780054239000,-573.0,0.00012028,2]
[423314888,1780054239000,-1209.0,0.00012028,2]
[423314893,1780054239000,-573.0,0.00012028,2]
[423314890,1780054239000,-1209.0,0.00012028,2]
[423314892,1780054239000,-1209.0,0.00012028,2]
[423314891,1780054239000,-573.0,0.00012028,2]
[423314894,1780054239000,-573.0,0.00012028,2]
[423314895,1780054239000,-1209.0,0.00012028,2]
[423314896,1780054239000,-573.0,0.00012028,2]
[423314881,1780054239000,-573.0,0.00012028,2]
[423314897,1780054239000,-573.0,0.00012028,2]
[423314904,1780054239000,-1209.0,0.00012028,2]
[423314906,1780054239000,-1209.0,0.00012028,2]
[423314917,1780054239000,-1341.0,0.00012069,2]
[423314907,1780054239000,-578.98246538,0.00012028,2]
[423314900,1780054239000,-1209.0,0.00012028,2]
[423314908,1780054239000,-1231.13331072,0.00012028,2]
[423314901,1780054239000,-573.0,0.00012028,2]
[423314905,1780054239000,-573.0,0.00012028,2]
[423314899,1780054239000,-573.0,0.00012028,2]
[423314898,1780054239000,-1209.0,0.00012028,2]
[423314903,1780054239000,-573.0,0.00012028,2]
[423314902,1780054239000,-1209.0,0.00012028,2]
[423314977,1780054240000,-4000.0,0.00012706,2]
[423314985,1780054240000,-1134.60161555,0.00012835,3]
[423314984,1780054240000,-151.0,0.00012833,2]
[423314974,1780054240000,-216.3744677,0.00012694,2]
[423314968,1780054240000,-833.02,0.00012673,2]
[423314967,1780054240000,-251.99808616,0.00012672,7]
[423314966,1780054240000,-300.0,0.00012665,2]
[423314970,1780054240000,-1680.0,0.00012685,2]
[423314978,1780054240000,-2000.0,0.00012736,2]
[423314976,1780054240000,-216.3744677,0.00012694,2]
[423314969,1780054240000,-507.0,0.00012679,2]
[423314987,1780054240000,-1099.01031239,0.00012835,3]
[423314981,1780054240000,-156.68,0.00012804,2]
[423314983,1780054240000,-75633.67217004,0.00012809,2]
[423314982,1780054240000,-1425.60983658,0.00012809,2]
[423314979,1780054240000,-37999.8785117,0.00012743,2]
[423314986,1780054240000,-150.0,0.00012835,2]
[423314988,1780054240000,-500.0,0.00012835,7]
[423314989,1780054240000,-500.0,0.00012835,8]
[423314993,1780054240000,-151.0,0.00012836,2]
[423314991,1780054240000,-267602.8968012,0.00012836,2]
[423314992,1780054240000,-7000.3823478,0.00012836,2]
[423314965,1780054240000,-420.0,0.00012665,2]
[423314980,1780054240000,-507.0,0.00012795,2]
[423314964,1780054240000,-1680.0,0.00012665,2]
[423314951,1780054240000,-75633.67217004,0.00012461,2]
[423314963,1780054240000,-166.6,0.00012647,2]
[423314939,1780054240000,-507.0,0.00012213,2]
[423314941,1780054240000,-1490.41,0.00012329,2]
[423314940,1780054240000,-1425.60983658,0.00012287,2]
[423314942,1780054240000,-507.0,0.0001233,2]
[423314944,1780054240000,-500.0,0.0001241,2]
[423314943,1780054240000,-37999.8785117,0.00012383,2]
[423314948,1780054240000,-1386.34,0.00012422,2]
[423314945,1780054240000,-623.19531483,0.0001241,2]
[423314949,1780054240000,-577.64,0.00012439,2]
[423314946,1780054240000,-4000.0,0.0001241,2]
[423314947,1780054240000,-155.51,0.0001241,2]
[423314950,1780054240000,-507.0,0.00012446,2]
[423314955,1780054240000,-507.0,0.00012562,2]
[423314958,1780054240000,-500.0,0.00012576,2]
[423314961,1780054240000,-500.0,0.00012603,2]
[423314956,1780054240000,-193.0,0.00012576,2]
[423314952,1780054240000,-236.28,0.00012491,2]
[423314953,1780054240000,-311.55362319,0.000125,2]
[423314959,1780054240000,-500.0,0.00012576,2]
[423314957,1780054240000,-2461.77405061,0.00012576,2]
[423314954,1780054240000,-6276.485,0.00012548,2]
[423314960,1780054240000,-255.0,0.00012593,2]
[423314972,1780054240000,-193.0,0.00012686,2]
[423314962,1780054240000,-605.20619622,0.00012603,2]
[423314990,1780054240000,-5908.1653759,0.00012836,2]
[423314995,1780054240000,-151.0,0.00012836,2]
[423314994,1780054240000,-151.0,0.00012836,2]
[423315026,1780054240000,-500.0,0.00012915,2]
[423315023,1780054240000,-500.0,0.00012915,2]
[423315025,1780054240000,-500.0,0.00012915,2]
[423315028,1780054240000,-500.0,0.00012915,2]
[423315029,1780054240000,-500.0,0.00012915,2]
[423315030,1780054240000,-500.0,0.00012915,2]
[423315033,1780054240000,-500.0,0.00012915,2]
[423315035,1780054240000,-502.32041744,0.00012915,2]
[423315032,1780054240000,-500.0,0.00012915,2]
[423315031,1780054240000,-500.0,0.00012915,2]
[423315034,1780054240000,-500.0,0.00012915,2]
[423315027,1780054240000,-500.0,0.00012915,2]
[423315038,1780054240000,-23932.08898017,0.00013,5]
[423315039,1780054240000,-872.15802478,0.00013,15]
[423315041,1780054240000,-2993.07851107,0.0001305,2]
[423315040,1780054240000,-4000.0,0.00013001,2]
[423315044,1780054240000,-6189.3366271,0.00013181,2]
[423315047,1780054240000,-1205.64058553,0.00013221,2]
[423315045,1780054240000,-2720.4636027,0.00013198,2]
[423315048,1780054240000,-166.22,0.00013268,2]
[423315042,1780054240000,-37999.8785117,0.00013102,2]
[423315043,1780054240000,-236.28,0.00013115,2]
[423315046,1780054240000,-2384.77840296,0.00013221,2]
[423314996,1780054240000,-1010.999266,0.00012836,2]
[423315037,1780054240000,-300.595656,0.00013,2]
[423315022,1780054240000,-305.0456141,0.00012915,2]
[423315036,1780054240000,-500.0,0.00012932,2]
[423315020,1780054240000,-179.16487897,0.00012915,2]
[423315019,1780054240000,-500.0,0.00012915,2]
[423314997,1780054240000,-1010.999266,0.00012836,2]
[423314999,1780054240000,-1010.999266,0.00012836,2]
[423315002,1780054240000,-151.0,0.00012836,2]
[423315001,1780054240000,-195.16941,0.00012836,2]
[423315000,1780054240000,-151.0,0.00012836,2]
[423314998,1780054240000,-1010.999266,0.00012836,2]
[423315006,1780054240000,-1000.0,0.00012902,2]
[423315003,1780054240000,-500.0,0.00012877,2]
[423315004,1780054240000,-500.0,0.00012881,2]
[423315007,1780054240000,-500.0,0.00012915,2]
[423315009,1780054240000,-500.0,0.00012915,2]
[423315005,1780054240000,-11200.0,0.000129,4]
[423315024,1780054240000,-500.0,0.00012915,2]
[423315021,1780054240000,-500.0,0.00012915,2]
[423315010,1780054240000,-500.0,0.00012915,2]
[423315018,1780054240000,-500.0,0.00012915,2]
[423315014,1780054240000,-500.0,0.00012915,2]
[423315015,1780054240000,-500.0,0.00012915,2]
[423315017,1780054240000,-500.0,0.00012915,2]
[423315013,1780054240000,-500.0,0.00012915,2]
[423315012,1780054240000,-500.0,0.00012915,2]
[423315008,1780054240000,-500.0,0.00012915,2]
[423315011,1780054240000,-500.0,0.00012915,2]
[423315016,1780054240000,-500.0,0.00012915,2]
[423315084,1780054241000,-150.0,0.00013488,2]
[423315085,1780054241000,-150.0,0.00013488,2]
[423315086,1780054241000,-150.0,0.00013488,2]
[423315095,1780054241000,-156.08721906,0.00013533,2]
[423315082,1780054241000,-150.0,0.00013488,2]
[423315079,1780054241000,-150.0,0.00013488,2]
[423315080,1780054241000,-150.0,0.00013488,2]
[423315078,1780054241000,-37999.8785117,0.00013462,2]
[423315081,1780054241000,-150.0,0.00013488,2]
[423315096,1780054241000,-150.0,0.00013545,2]
[423315076,1780054241000,-500.0,0.00013443,4]
[423315089,1780054241000,-2000.0,0.00013498,2]
[423315107,1780054241000,-500.0,0.00013597,5]
[423315094,1780054241000,-150.0,0.00013533,2]
[423315090,1780054241000,-200.0,0.00013498,2]
[423315087,1780054241000,-156.08721906,0.00013488,2]
[423315088,1780054241000,-200.0,0.00013498,2]
[423315093,1780054241000,-156.08721906,0.00013518,2]
[423315091,1780054241000,-1000.0,0.000135,2]
[423315104,1780054241000,-151.0,0.00013595,2]
[423315102,1780054241000,-150.0,0.00013581,2]
[423315106,1780054241000,-151.0,0.00013595,2]
[423315105,1780054241000,-151.0,0.00013595,2]
[423315103,1780054241000,-156.08721906,0.00013594,2]
[423315077,1780054241000,-500.0,0.00013444,2]
[423315092,1780054241000,-156.08721906,0.00013503,2]
[423315083,1780054241000,-150.0,0.00013488,2]
[423315050,1780054241000,-17522.0,0.00013288,2]
[423315074,1780054241000,-500.0,0.00013443,2]
[423315108,1780054241000,-500.0,0.00013597,6]
[423315049,1780054241000,-1776.0,0.00013288,2]
[423315052,1780054241000,-2645.3840021,0.00013306,2]
[423315058,1780054241000,-151.0,0.00013321,2]
[423315060,1780054241000,-1010.999266,0.00013321,2]
[423315059,1780054241000,-151.0,0.00013321,2]
[423315054,1780054241000,-204.489836,0.00013318,2]
[423315053,1780054241000,-342.02273589,0.00013308,2]
[423315051,1780054241000,-2000.0,0.00013297,2]
[423315055,1780054241000,-36328.1379531,0.00013321,2]
[423315057,1780054241000,-151.0,0.00013321,2]
[423315056,1780054241000,-474966.8112908,0.00013321,2]
[423315061,1780054241000,-1010.999266,0.00013321,2]
[423315065,1780054241000,-151.0,0.00013321,2]
[423315063,1780054241000,-1010.999266,0.00013321,2]
[423315064,1780054241000,-151.0,0.00013321,2]
[423315066,1780054241000,-346.59,0.00013324,2]
[423315062,1780054241000,-1010.999266,0.00013321,2]
[423315072,1780054241000,-133671.98508232,0.0001337,2]
[423315073,1780054241000,-728.6551873,0.00013431,2]
[423315067,1780054241000,-162.39,0.00013324,2]
[423315071,1780054241000,-2608.71861886,0.0001337,2]
[423315068,1780054241000,-1425.60983658,0.00013332,2]
[423315069,1780054241000,-1490.76239877,0.00013369,2]
[423315070,1780054241000,-3616.9374719,0.0001337,2]
[423315075,1780054241000,-500.0,0.00013443,3]
[423315100,1780054241000,-150.0,0.00013578,2]
[423315097,1780054241000,-150.0,0.00013548,2]
[423315163,1780054241000,-500.0,0.00013698,2]
[423315138,1780054241000,-500.0,0.00013698,2]
[423315134,1780054241000,-156.08721906,0.00013684,2]
[423315143,1780054241000,-151.0,0.00013698,2]
[423315139,1780054241000,-500.0,0.00013698,2]
[423315144,1780054241000,-366.60251897,0.00013698,2]
[423315141,1780054241000,-500.0,0.00013698,2]
[423315142,1780054241000,-500.0,0.00013698,2]
[423315140,1780054241000,-500.0,0.00013698,2]
[423315146,1780054241000,-375.06971065,0.00013698,2]
[423315145,1780054241000,-549.86590822,0.00013698,2]
[423315154,1780054241000,-500.0,0.00013698,2]
[423315148,1780054241000,-500.0,0.00013698,2]
[423315137,1780054241000,-500.0,0.00013698,2]
[423315153,1780054241000,-568.63269263,0.00013698,2]
[423315149,1780054241000,-500.0,0.00013698,2]
[423315150,1780054241000,-500.0,0.00013698,2]
[423315147,1780054241000,-500.0,0.00013698,2]
[423315151,1780054241000,-500.0,0.00013698,2]
[423315156,1780054241000,-500.0,0.00013698,2]
[423315157,1780054241000,-500.0,0.00013698,2]
[423315161,1780054241000,-500.0,0.00013698,2]
[423315158,1780054241000,-638.92,0.00013698,2]
[423315160,1780054241000,-500.0,0.00013698,2]
[423315159,1780054241000,-500.0,0.00013698,2]
[423315098,1780054241000,-156.08721906,0.00013548,2]
[423315162,1780054241000,-500.0,0.00013698,2]
[423315155,1780054241000,-500.0,0.00013698,2]
[423315135,1780054241000,-500.0,0.00013698,2]
[423315152,1780054241000,-500.0,0.00013698,2]
[423315133,1780054241000,-150.0,0.00013675,2]
[423315099,1780054241000,-156.08721906,0.00013563,2]
[423315136,1780054241000,-500.0,0.00013698,2]
[423315111,1780054241000,-500.0,0.00013597,9]
[423315113,1780054241000,-150.0,0.00013603,2]
[423315109,1780054241000,-500.0,0.00013597,7]
[423315114,1780054241000,-160.42,0.00013604,2]
[423315112,1780054241000,-500.0,0.00013597,10]
[423315110,1780054241000,-500.0,0.00013597,8]
[423315115,1780054241000,-150.0,0.00013608,2]
[423315119,1780054241000,-199.37384035,0.00013616,2]
[423315120,1780054241000,-150.0,0.00013624,2]
[423315117,1780054241000,-151.0,0.00013616,2]
[423315118,1780054241000,-156.587,0.00013616,2]
[423315101,1780054241000,-156.08721906,0.00013578,2]
[423315122,1780054241000,-200.0,0.00013633,2]
[423315116,1780054241000,-156.08721906,0.00013609,2]
[423315128,1780054241000,-150.0,0.00013661,2]
[423315127,1780054241000,-156.08721906,0.00013654,2]
[423315126,1780054241000,-150.0,0.00013654,2]
[423315125,1780054241000,-156.08721906,0.00013639,2]
[423315131,1780054241000,-156.08721906,0.00013669,2]
[423315130,1780054241000,-150.0,0.00013669,2]
[423315124,1780054241000,-200.0,0.00013633,2]
[423315123,1780054241000,-1353.67785538,0.00013633,2]
[423315121,1780054241000,-156.08721906,0.00013624,2]
[423315132,1780054241000,-5519.0,0.00013671,2]
[423315129,1780054241000,-150.0,0.00013668,2]
[423315200,1780054242000,-500.0,0.00013698,2]
[423315199,1780054242000,-500.0,0.00013698,2]
[423315197,1780054242000,-500.0,0.00013698,2]
[423315196,1780054242000,-500.0,0.00013698,2]
[423315194,1780054242000,-500.0,0.00013698,2]
[423315198,1780054242000,-500.0,0.00013698,2]
[423315195,1780054242000,-500.0,0.00013698,2]
[423315193,1780054242000,-500.0,0.00013698,2]
[423315203,1780054242000,-379.10073076,0.00013698,2]
[423315192,1780054242000,-500.0,0.00013698,2]
[423315201,1780054242000,-500.0,0.00013698,2]
[423315208,1780054242000,-500.0,0.00013698,2]
[423315205,1780054242000,-500.0,0.00013698,2]
[423315204,1780054242000,-500.0,0.00013698,2]
[423315207,1780054242000,-500.0,0.00013698,2]
[423315206,1780054242000,-500.0,0.00013698,2]
[423315209,1780054242000,-500.0,0.00013698,2]
[423315214,1780054242000,-500.0,0.00013698,2]
[423315211,1780054242000,-500.0,0.00013698,2]
[423315212,1780054242000,-500.0,0.00013698,2]
[423315210,1780054242000,-500.0,0.00013698,2]
[423315215,1780054242000,-500.0,0.00013698,2]
[423315222,1780054242000,-500.0,0.00013698,2]
[423315191,1780054242000,-500.0,0.00013698,2]
[423315213,1780054242000,-500.0,0.00013698,2]
[423315202,1780054242000,-500.0,0.00013698,2]
[423315221,1780054242000,-500.0,0.00013698,2]
[423315184,1780054242000,-500.0,0.00013698,2]
[423315164,1780054242000,-500.0,0.00013698,2]
[423315166,1780054242000,-500.0,0.00013698,2]
[423315165,1780054242000,-500.0,0.00013698,2]
[423315178,1780054242000,-500.0,0.00013698,2]
[423315172,1780054242000,-500.0,0.00013698,2]
[423315170,1780054242000,-500.0,0.00013698,2]
[423315168,1780054242000,-500.0,0.00013698,2]
[423315167,1780054242000,-552.49862501,0.00013698,2]
[423315174,1780054242000,-500.0,0.00013698,2]
[423315175,1780054242000,-500.0,0.00013698,2]
[423315171,1780054242000,-500.0,0.00013698,2]
[423315173,1780054242000,-500.0,0.00013698,2]
[423315176,1780054242000,-500.0,0.00013698,2]
[423315169,1780054242000,-500.0,0.00013698,2]
[423315177,1780054242000,-500.0,0.00013698,2]
[423315179,1780054242000,-500.0,0.00013698,2]
[423315181,1780054242000,-500.0,0.00013698,2]
[423315187,1780054242000,-500.0,0.00013698,2]
[423315180,1780054242000,-500.0,0.00013698,2]
[423315182,1780054242000,-500.0,0.00013698,2]
[423315190,1780054242000,-500.0,0.00013698,2]
[423315185,1780054242000,-500.0,0.00013698,2]
[423315188,1780054242000,-500.0,0.00013698,2]
[423315189,1780054242000,-500.0,0.00013698,2]
[423315183,1780054242000,-500.0,0.00013698,2]
[423315186,1780054242000,-502.6690024,0.00013698,2]
[423315219,1780054242000,-500.0,0.00013698,2]
[423315225,1780054242000,-500.0,0.00013698,2]
[423315217,1780054242000,-500.0,0.00013698,2]
[423315263,1780054242000,-151.0,0.00013699,2]
[423315257,1780054242000,-162.408305,0.00013699,2]
[423315262,1780054242000,-151.0,0.00013699,2]
[423315256,1780054242000,-162.408305,0.00013699,2]
[423315258,1780054242000,-200.0,0.00013699,2]
[423315259,1780054242000,-162.408305,0.00013699,2]
[423315255,1780054242000,-166.66,0.00013699,2]
[423315261,1780054242000,-151.0,0.00013699,2]
[423315265,1780054242000,-151.0,0.00013699,2]
[423315267,1780054242000,-151.0,0.00013699,2]
[423315269,1780054242000,-151.0,0.00013699,2]
[423315272,1780054242000,-151.0,0.00013699,2]
[423315266,1780054242000,-162.408305,0.00013699,2]
[423315270,1780054242000,-151.0,0.00013699,2]
[423315268,1780054242000,-151.0,0.00013699,2]
[423315273,1780054242000,-162.408305,0.00013699,2]
[423315274,1780054242000,-151.0,0.00013699,2]
[423315275,1780054242000,-151.0,0.00013699,2]
[423315276,1780054242000,-151.0,0.00013699,2]
[423315279,1780054242000,-151.0,0.00013699,2]
[423315280,1780054242000,-151.0,0.00013699,2]
[423315278,1780054242000,-151.0,0.00013699,2]
[423315277,1780054242000,-151.0,0.00013699,2]
[423315281,1780054242000,-151.0,0.00013699,2]
[423315218,1780054242000,-529.19931579,0.00013698,2]
[423315264,1780054242000,-162.408305,0.00013699,2]
[423315260,1780054242000,-162.408305,0.00013699,2]
[423315271,1780054242000,-162.408305,0.00013699,2]
[423315247,1780054242000,-493.905739,0.00013699,2]
[423315246,1780054242000,-493.905739,0.00013699,2]
[423315216,1780054242000,-500.0,0.00013698,2]
[423315220,1780054242000,-500.0,0.00013698,2]
[423315227,1780054242000,-929.11,0.00013698,2]
[423315229,1780054242000,-929.11,0.00013698,2]
[423315239,1780054242000,-152.0,0.00013698,2]
[423315236,1780054242000,-929.11,0.00013698,2]
[423315237,1780054242000,-929.11,0.00013698,2]
[423315230,1780054242000,-500.0,0.00013698,2]
[423315234,1780054242000,-500.0,0.00013698,2]
[423315233,1780054242000,-929.11,0.00013698,2]
[423315235,1780054242000,-929.11,0.00013698,2]
[423315231,1780054242000,-500.0,0.00013698,2]
[423315224,1780054242000,-500.0,0.00013698,2]
[423315228,1780054242000,-500.0,0.00013698,2]
[423315232,1780054242000,-500.0,0.00013698,2]